bitfinex/quotes_BTCUSD_20210402
["timestamp","ask_amount","ask_price","bid_price","bid_amount"]
[1617325829361,1.12656896,58669.0,58664.0,0.03711142]
[1617325829558,0.32,58668.0,58664.0,0.03711142]
[1617325829758,0.26401138,58667.0,58664.0,0.03711142]
[1617325829957,0.65995034,58667.0,58664.0,0.03711142]
[1617325830157,0.39593896,58667.0,58664.0,0.03711142]
[1617325830359,0.62593896,58666.0,58664.0,0.03711142]
[1617325830763,1.93,58665.0,58664.0,0.03711142]
[1617325831167,2.16,58665.0,58664.0,0.03711142]
[1617325831768,0.24,58665.0,58664.0,0.03711142]
[1617325832166,1.94,58665.0,58664.0,0.03711142]
[1617325832969,0.24,58665.0,58664.0,0.03711142]
[1617325833168,1.13,58665.0,58664.0,0.03711142]
[1617325833588,1.13,58665.0,58664.0,0.12075613]
[1617325833793,1.23,58665.0,58664.0,0.12075613]
[1617325834988,1.13,58665.0,58664.0,0.12075613]
[1617325835188,0.24,58665.0,58664.0,0.12075613]
[1617325835590,0.39593896,58666.0,58664.0,0.12075613]
[1617325835795,0.255699,58667.0,58664.0,0.12075613]
[1617325835992,0.255699,58667.0,58665.0,0.08351459]
[1617325836208,1.7,58666.0,58665.0,0.10312772]
[1617325836407,2.44593896,58666.0,58665.0,0.10312772]
[1617325836605,2.44593896,58666.0,58665.0,0.08351459]
[1617325837211,2.44593896,58666.0,58665.0,0.10312945]
[1617325837807,2.05,58666.0,58665.0,0.10312945]
[1617325838408,2.44593896,58666.0,58665.0,0.10312945]
[1617325838611,2.34593896,58666.0,58665.0,0.10312945]
[1617325838836,2.44593896,58666.0,58665.0,0.10312945]
[1617325839038,2.34593896,58666.0,58665.0,0.10312945]
[1617325839238,2.34593896,58666.0,58664.0,0.1567267]
[1617325839440,1.92,58665.0,58664.0,0.13711142]
[1617325839643,2.41318902,58665.0,58664.0,0.13711142]
[1617325840039,2.41318902,58665.0,58664.0,0.1567272]
[1617325840238,2.41318902,58665.0,58664.0,0.13711142]
[1617325840644,2.51318902,58665.0,58664.0,0.13711142]
[1617325840841,2.51318902,58665.0,58664.0,0.15672933]
[1617325841043,2.51318902,58665.0,58664.0,0.13711142]
[1617325841725,2.46318902,58665.0,58664.0,0.13711142]
[1617325842727,0.54318902,58665.0,58664.0,0.13711142]
[1617325842936,0.06818902,58665.0,58664.0,0.13711142]
[1617325844533,0.65162496,58670.0,58664.0,0.13711142]
[1617325844928,0.145,58669.0,58664.0,0.13711142]
[1617325845132,0.54093896,58669.0,58665.0,0.08395471]
[1617325845331,0.225,58668.0,58665.0,0.08395471]
[1617325845531,0.39593896,58668.0,58665.0,0.08395471]
[1617325845932,0.39593896,58667.0,58665.0,0.08395471]
[1617325846131,0.39593896,58666.0,58665.0,0.08395471]
[1617325846333,0.65162596,58667.0,58665.0,0.08395471]
[1617325847130,0.255687,58667.0,58665.0,0.08395471]
[1617325847531,1.11,58666.0,58665.0,0.08395471]
[1617325847731,1.34,58666.0,58665.0,0.08395471]
[1617325848131,1.73593896,58666.0,58665.0,0.08395471]
[1617325848933,1.92,58666.0,58665.0,0.08395471]
[1617325849339,1.34,58666.0,58665.0,0.08395471]
[1617325849541,1.24,58666.0,58665.0,0.08395471]
[1617325849740,0.23,58666.0,58665.0,0.08395471]
[1617325849942,0.06818301,58669.0,58665.0,0.08395471]
[1617325850344,0.1,58668.0,58665.0,0.08395471]
[1617325851144,0.36401138,58668.0,58665.0,0.08395471]
[1617325851745,0.255695,58667.0,58665.0,0.08395471]
[1617325852160,0.94,58666.0,58665.0,0.08395471]
[1617325852361,1.045,58666.0,58665.0,0.08395471]
[1617325853166,1.145,58666.0,58665.0,0.08395471]
[1617325854598,0.15088315,58665.0,58664.0,0.13711142]
[1617325854997,0.84088315,58665.0,58664.0,0.13711142]
[1617325855398,0.15088315,58665.0,58664.0,0.13711142]
[1617325855796,0.1,58665.0,58664.0,0.13711142]
[1617325855996,0.1,58668.0,58664.0,0.13711142]
[1617325856597,0.255696,58667.0,58664.0,0.13711142]
[1617325856871,0.1,58666.0,58664.0,0.13711142]
[1617325858124,0.255696,58667.0,58664.0,0.13711142]
[1617325858326,0.65163496,58667.0,58664.0,0.13711142]
[1617325858530,0.255696,58667.0,58664.0,0.13711142]
[1617325858727,0.255696,58667.0,58664.0,0.13371142]
[1617325858928,0.06818301,58669.0,58665.0,0.056]
[1617325859129,0.127838,58671.0,58666.0,0.21388599]
[1617325859329,0.127838,58671.0,58667.0,0.056]
[1617325859534,0.06817791,58677.0,58670.0,0.389545]
[1617325859731,0.6,58683.0,58671.0,0.305]
[1617325859970,0.6,58683.0,58673.0,0.42277]
[1617325860166,0.10355514,58684.0,58673.0,0.42277]
[1617325860362,1.5767,58693.0,58678.0,0.15608533]
[1617325860562,0.315,58688.0,58681.0,0.004]
[1617325860764,0.127816,58686.0,58681.0,0.004]
[1617325860964,0.122816,58686.0,58681.0,0.004]
[1617325861163,0.122816,58686.0,58682.0,0.055]
[1617325862567,0.389545,58685.0,58682.0,0.055]
[1617325862767,0.19,58684.0,58682.0,0.055]
[1617325863168,0.122816,58686.0,58682.0,0.055]
[1617325863369,0.389545,58685.0,58682.0,0.055]
[1617325863569,0.122816,58686.0,58682.0,0.055]
[1617325863770,0.389545,58685.0,58682.0,0.055]
[1617325864371,0.1,58684.0,58682.0,0.055]
[1617325864569,0.695169,58685.0,58682.0,0.055]
[1617325864570,1.520384,58683.0,58682.0,0.055]
[1617325864773,1.810384,58683.0,58682.0,0.055]
[1617325864974,0.590384,58683.0,58682.0,0.055]
[1617325865190,0.255624,58685.0,58682.0,0.055]
[1617325866190,0.389545,58684.0,58682.0,0.055]
[1617325866397,1.53,58683.0,58681.0,0.04]
[1617325866592,0.700384,58682.0,58681.0,0.04]
[1617325866793,0.700384,58682.0,58669.0,0.16597533]
[1617325866990,0.4,58682.0,58672.0,0.0074]
[1617325867192,0.3,58681.0,58673.0,0.056]
[1617325867395,0.427819,58681.0,58673.0,0.056]
[1617325868227,0.427819,58681.0,58673.0,0.096]
[1617325868825,0.4921335,58681.0,58673.0,0.096]
[1617325869225,0.335,58680.0,58673.0,0.096]
[1617325869627,0.335,58680.0,58673.0,0.22445]
[1617325870032,0.0643145,58681.0,58673.0,0.58756]
[1617325870229,0.0643145,58681.0,58677.0,0.389545]
[1617325870451,0.0643145,58681.0,58680.0,0.389545]
[1617325870847,0.0643145,58681.0,58680.0,1.245545]
[1617325871048,0.0643145,58681.0,58680.0,0.485545]
[1617325871249,0.0643145,58681.0,58680.0,0.56849724]
[1617325871448,0.0643145,58681.0,58680.0,0.519618]
[1617325872021,0.0643145,58681.0,58680.0,1.94065117]
[1617325872218,0.0643145,58681.0,58680.0,2.16565117]
[1617325872428,0.0643145,58681.0,58680.0,2.35117609]
[1617325872623,0.0643145,58681.0,58680.0,2.45117609]
[1617325872824,0.0643145,58681.0,58680.0,4.37117609]
[1617325873021,0.0643145,58681.0,58680.0,4.41117609]
[1617325873220,0.0643145,58681.0,58680.0,4.70675709]
[1617325873824,0.03765475,58681.0,58680.0,4.86675709]
[1617325874018,0.03765475,58681.0,58680.0,4.77075709]
[1617325874219,0.936,58705.0,58681.0,2.9121]
[1617325874422,0.936,58705.0,58704.0,0.09142601]
[1617325874620,1.161,58705.0,58704.0,0.48438601]
[1617325875618,1.161,58705.0,58704.0,0.48733935]
[1617325875820,1.161,58705.0,58704.0,0.48438601]
[1617325876419,1.161,58705.0,58704.0,0.48734015]
[1617325876621,1.161,58705.0,58704.0,0.48438601]
[1617325877621,1.550557,58705.0,58704.0,0.48438601]
[1617325877823,1.550557,58705.0,58704.0,0.50408628]
[1617325878625,1.550557,58705.0,58704.0,0.48438601]
[1617325878825,1.550557,58705.0,58704.0,0.50409718]
[1617325879025,1.550557,58705.0,58704.0,0.41267117]
[1617325879426,1.550557,58705.0,58704.0,0.39296]
[1617325879626,1.550557,58705.0,58703.0,0.12171859]
[1617325879828,1.059249,58704.0,58703.0,0.01968859]
[1617325880026,0.624249,58704.0,58703.0,0.01968859]
[1617325881649,0.624249,58704.0,58703.0,0.02228103]
[1617325882250,0.624249,58704.0,58703.0,0.10494295]
[1617325882659,0.315,58704.0,58703.0,0.08525436]
[1617325882851,0.704557,58704.0,58703.0,0.08525436]
[1617325883055,0.704557,58704.0,58703.0,0.10492205]
[1617325883255,0.704557,58704.0,58703.0,0.00259244]
[1617325885474,0.704557,58704.0,58703.0,0.0055399]
[1617325886098,0.45,58703.0,58693.0,0.03757526]
[1617325886299,0.78,58703.0,58696.0,0.0056]
[1617325886696,0.205,58702.0,58696.0,0.0056]
[1617325886953,0.205,58702.0,58697.0,0.08165273]
[1617325887154,0.936,58705.0,58697.0,0.08165273]
[1617325887352,0.936,58705.0,58700.0,0.12792472]
[1617325887766,0.936,58705.0,58701.0,0.0816577]
[1617325887955,0.389557,58704.0,58701.0,0.0816577]
[1617325888156,0.389557,58704.0,58702.0,0.005]
[1617325888359,0.629557,58704.0,58702.0,0.005]
[1617325888557,0.24,58704.0,58702.0,0.005]
[1617325888754,0.26,58703.0,58702.0,0.035]
[1617325889556,0.649557,58703.0,58702.0,0.035]
[1617325889757,0.649557,58703.0,58702.0,0.17484674]
[1617325890356,0.649557,58703.0,58702.0,0.093]
[1617325890556,0.649557,58703.0,58699.0,0.004]
[1617325890758,0.309249,58702.0,58699.0,0.054]
[1617325890960,0.544249,58702.0,58700.0,0.063]
[1617325891358,0.235,58702.0,58700.0,0.063]
[1617325891757,0.195,58701.0,58700.0,0.063]
[1617325892558,0.936,58705.0,58700.0,0.063]
[1617325892762,0.309249,58704.0,58700.0,0.063]
[1617325893759,0.309249,58704.0,58700.0,0.062769]
[1617325893972,0.46483163,58703.0,58700.0,0.062769]
[1617325894172,0.305,58703.0,58700.0,0.062769]
[1617325894574,0.389557,58702.0,58700.0,0.062769]
[1617325894775,0.305,58703.0,58700.0,0.062769]
[1617325894974,0.22,58702.0,58700.0,0.062769]
[1617325895776,0.936,58705.0,58700.0,0.062769]
[1617325895980,0.936,58705.0,58704.0,1.67747378]
[1617325896186,0.936,58705.0,58704.0,2.60117688]
[1617325896376,0.936,58705.0,58704.0,3.15817688]
[1617325897194,0.936,58705.0,58704.0,3.19817688]
[1617325897795,1.778548,58718.0,58704.0,4.44574588]
[1617325897998,1.778548,58718.0,58717.0,0.11419254]
[1617325898199,1.6508,58718.0,58717.0,0.58407469]
[1617325898807,0.0004,58723.0,58717.0,1.57617469]
[1617325899006,0.0004,58723.0,58719.0,0.39150782]
[1617325899235,0.0004,58723.0,58722.0,0.389054]
[1617325899434,0.0004,58723.0,58722.0,1.59695412]
[1617325899632,0.0004,58723.0,58722.0,2.09195412]
[1617325900028,0.0004,58723.0,58722.0,2.13195412]
[1617325901227,0.0004,58723.0,58722.0,1.14179287]
[1617325901430,0.0004,58723.0,58722.0,2.13195412]
[1617325901943,0.0004,58723.0,58722.0,2.17195412]
[1617325902343,0.0004,58723.0,58722.0,2.67195412]
[1617325902545,0.0004,58723.0,58722.0,2.82903608]
[1617325903146,0.001,58725.0,58723.0,3.17550725]
[1617325903147,0.00736289,58724.0,58723.0,3.17550725]
[1617325903348,0.00736289,58724.0,58723.0,3.9969729]
[1617325903549,0.001,58727.0,58725.0,1.93]
[1617325903747,0.0012,58731.0,58726.0,1.93]
[1617325903951,0.0012,58731.0,58727.0,3.63458795]
[1617325904145,0.0012,58731.0,58727.0,4.79547877]
[1617325904346,0.0012,58731.0,58728.0,2.91016125]
[1617325904598,0.0012,58731.0,58729.0,4.68587068]
[1617325904798,0.0012,58731.0,58729.0,5.82587068]
[1617325904998,0.0012,58731.0,58730.0,2.31150782]
[1617325905197,0.0012,58731.0,58730.0,3.73122607]
[1617325905398,0.0012,58731.0,58730.0,4.70362538]
[1617325905596,0.0012,58731.0,58730.0,5.70362538]
[1617325906000,0.001,58732.0,58731.0,1.92]
[1617325906197,0.001,58732.0,58731.0,4.33971825]
[1617325906599,0.001,58732.0,58731.0,4.49371825]
[1617325907204,0.001,58732.0,58731.0,3.503557]
[1617325907404,0.001,58732.0,58731.0,3.309557]
[1617325908007,0.001,58732.0,58731.0,3.462557]
[1617325908809,0.001,58732.0,58731.0,1.542557]
[1617325909012,0.001,58732.0,58731.0,0.389557]
[1617325909215,0.001,58732.0,58731.0,0.542557]
[1617325910022,0.001,58732.0,58731.0,0.582557]
[1617325910227,0.001,58732.0,58731.0,0.542557]
[1617325910422,0.001,58732.0,58731.0,2.727557]
[1617325910826,0.001,58732.0,58731.0,2.574557]
[1617325911621,0.001,58732.0,58731.0,2.728557]
[1617325913050,0.001,58732.0,58731.0,0.808557]
[1617325913248,0.001,58732.0,58731.0,1.878557]
[1617325913646,0.001,58732.0,58731.0,2.27006482]
[1617325913850,0.001,58732.0,58731.0,3.26022607]
[1617325914058,0.001,58732.0,58731.0,3.30022607]
[1617325914250,0.001,58732.0,58731.0,3.16006482]
[1617325914450,0.001,58732.0,58731.0,4.15022607]
[1617325914646,0.001,58732.0,58731.0,4.11022607]
[1617325916477,0.001,58732.0,58731.0,3.12006482]
[1617325916676,0.001,58732.0,58731.0,4.11022607]
[1617325917150,0.001,58732.0,58731.0,4.15022607]
[1617325917549,0.001,58732.0,58731.0,4.65022607]
[1617325917950,0.001,58732.0,58731.0,2.61606482]
[1617325918555,0.88707826,58732.0,58731.0,2.61606482]
[1617325918749,0.88707826,58732.0,58731.0,2.65606482]
[1617325918949,0.88707826,58732.0,58731.0,2.81006482]
[1617325919148,0.90135892,58732.0,58731.0,2.81006482]
[1617325919552,0.90135892,58732.0,58731.0,3.80022607]
[1617325919750,0.90135892,58732.0,58731.0,3.21300482]
[1617325919950,0.90135892,58732.0,58731.0,4.08916607]
[1617325920149,0.90135892,58732.0,58731.0,4.93916607]
[1617325920352,0.90135892,58732.0,58731.0,3.58916607]
[1617325920752,0.90135892,58732.0,58731.0,3.54916607]
[1617325920951,0.90135892,58732.0,58731.0,2.59900482]
[1617325921152,0.90135892,58732.0,58731.0,3.41900482]
[1617325921955,0.90135892,58732.0,58731.0,1.48900482]
[1617325922160,0.90135892,58732.0,58731.0,0.694557]
[1617325922553,0.90135892,58732.0,58731.0,0.265]
[1617325922756,0.90135892,58732.0,58729.0,0.18131631]
[1617325922957,0.90135892,58732.0,58729.0,0.04]
[1617325923157,0.90135892,58732.0,58731.0,1.97]
[1617325923357,0.90135892,58732.0,58731.0,2.359557]
[1617325923557,0.90135892,58732.0,58731.0,4.07971825]
[1617325923756,0.90135892,58732.0,58731.0,4.47122607]
[1617325924156,0.90135892,58732.0,58731.0,3.48106482]
[1617325924757,0.90135892,58732.0,58731.0,4.47122607]
[1617325924957,0.90135892,58732.0,58731.0,5.11254238]
[1617325925573,0.90135892,58732.0,58731.0,4.12238113]
[1617325925974,0.90135892,58732.0,58731.0,5.11254238]
[1617325926175,0.90135892,58732.0,58731.0,4.27870987]
[1617325926377,0.90135892,58732.0,58731.0,4.23870987]
[1617325926579,0.90135892,58732.0,58731.0,3.69087331]
[1617325927782,0.90135892,58732.0,58731.0,3.73087331]
[1617325927981,0.90135892,58732.0,58731.0,3.88709733]
[1617325928211,0.90135892,58732.0,58731.0,3.34709733]
[1617325928406,0.90135892,58732.0,58731.0,3.19087331]
[1617325928605,0.90135892,58732.0,58731.0,3.34701763]
[1617325929405,0.90135892,58732.0,58731.0,3.19087331]
[1617325930005,0.90135892,58732.0,58731.0,3.43908026]
[1617325930205,0.90135892,58732.0,58731.0,3.34691612]
[1617325931029,0.90135892,58732.0,58731.0,3.84691612]
[1617325931230,0.90135892,58732.0,58731.0,3.69087331]
[1617325931431,0.90135892,58732.0,58731.0,3.93908173]
[1617325931830,0.90135892,58732.0,58731.0,3.89908173]
[1617325932716,0.90135892,58732.0,58731.0,3.93908173]
[1617325933118,0.90135892,58732.0,58731.0,3.89908173]
[1617325934759,0.90135892,58732.0,58731.0,3.93908173]
[1617325935559,0.90135892,58732.0,58731.0,3.43908173]
[1617325935983,0.90135892,58732.0,58731.0,3.19087331]
[1617325937585,0.90135892,58732.0,58731.0,3.43929871]
[1617325937787,0.90135892,58732.0,58731.0,3.19087331]
[1617325937986,0.90135892,58732.0,58731.0,3.15087331]
[1617325938186,0.90035892,58732.0,58731.0,2.46087331]
[1617325938389,0.89635892,58732.0,58731.0,0.389557]
[1617325938610,0.89635892,58732.0,58731.0,0.54589789]
[1617325938810,0.89635892,58732.0,58731.0,0.389557]
[1617325939008,1.03635892,58732.0,58731.0,0.389557]
[1617325939209,1.03635892,58732.0,58730.0,0.29766856]
[1617325939409,1.03635892,58732.0,58730.0,0.15635225]
[1617325939613,0.89635892,58732.0,58729.0,0.45172832]
[1617325939813,0.89635892,58732.0,58731.0,3.1921503]
[1617325940014,0.89635892,58732.0,58731.0,3.877063]
[1617325940216,0.89635892,58732.0,58731.0,2.73515435]
[1617325940416,0.89635892,58732.0,58731.0,4.02522686]
[1617325940615,0.89635892,58732.0,58731.0,3.77706585]
[1617325940818,0.89635892,58732.0,58731.0,4.02518755]
[1617325941012,0.89635892,58732.0,58731.0,5.02518755]
[1617325941234,0.89635892,58732.0,58731.0,6.0353488]
[1617325941834,0.89635892,58732.0,58731.0,6.3853488]
[1617325942036,0.89635892,58732.0,58731.0,6.8893488]
[1617325942239,0.89635892,58732.0,58731.0,7.67797983]
[1617325942634,0.89135892,58732.0,58731.0,7.69797983]
[1617325942836,0.89135892,58732.0,58731.0,6.70781858]
[1617325943437,0.89135892,58732.0,58731.0,7.69797983]
[1617325944461,0.89135892,58732.0,58731.0,7.3893488]
[1617325945662,0.89135892,58732.0,58731.0,5.48518755]
[1617325946680,0.89135892,58732.0,58731.0,5.55418755]
[1617325946881,0.89135892,58732.0,58731.0,5.77418755]
[1617325947343,0.89135892,58732.0,58731.0,6.01418755]
[1617325947742,0.88135892,58732.0,58731.0,6.01418755]
[1617325947943,0.88135892,58732.0,58731.0,7.0043488]
[1617325948151,0.83571037,58732.0,58731.0,7.0043488]
[1617325948348,0.83571037,58732.0,58731.0,7.1602284]
[1617325948743,0.80905062,58732.0,58731.0,9.16248324]
[1617325949342,0.80905062,58732.0,58731.0,8.17232199]
[1617325950342,0.80905062,58732.0,58731.0,8.25532199]
[1617325950947,0.80905062,58732.0,58731.0,8.14472239]
[1617325953747,0.80905062,58732.0,58731.0,7.71472239]
[1617325953949,0.80905062,58732.0,58731.0,7.87030988]
[1617325954147,0.80905062,58732.0,58731.0,7.71472239]
[1617325954755,0.80905062,58732.0,58731.0,7.42272239]
[1617325955156,0.80905062,58732.0,58731.0,7.57472239]
[1617325955356,0.80905062,58732.0,58731.0,7.87013132]
[1617325955555,0.80905062,58732.0,58731.0,7.71472239]
[1617325956855,0.80905062,58732.0,58731.0,7.42272239]
[1617325957088,0.80905062,58732.0,58731.0,7.57780554]
[1617325957487,0.80905062,58732.0,58731.0,8.31505554]
[1617325957687,0.80905062,58732.0,58731.0,8.52469239]
[1617325958086,0.80905062,58732.0,58731.0,8.72469239]
[1617325958689,0.80905062,58732.0,58731.0,8.78969239]
[1617325959091,0.80905062,58732.0,58731.0,8.9442811]
[1617325959488,0.80905062,58732.0,58731.0,8.29968239]
[1617325959700,0.80905062,58732.0,58731.0,8.57968239]
[1617325960702,0.80905062,58732.0,58731.0,8.23497239]
[1617325960903,0.80905062,58732.0,58731.0,8.38975127]
[1617325961103,0.80905062,58732.0,58731.0,8.28350127]
[1617325961903,0.80905062,58732.0,58731.0,8.32350127]
[1617325962461,0.80905062,58732.0,58731.0,8.08350127]
[1617325962860,0.80905062,58732.0,58731.0,7.92872239]
[1617325963262,0.80405062,58732.0,58731.0,7.92872239]
[1617325964260,0.80405062,58732.0,58731.0,7.87872239]
[1617325964862,0.80405062,58732.0,58731.0,7.46272239]
[1617325965262,0.80405062,58732.0,58731.0,7.76272239]
[1617325965464,0.80405062,58732.0,58731.0,7.66272239]
[1617325965864,0.80405062,58732.0,58731.0,7.76272239]
[1617325966063,0.80405062,58732.0,58731.0,7.97872239]
[1617325966662,0.80405062,58732.0,58731.0,8.18898239]
[1617325967687,0.80405062,58732.0,58731.0,8.66898239]
[1617325967888,0.80405062,58732.0,58731.0,8.73090239]
[1617325968891,0.80405062,58732.0,58731.0,8.20090239]
[1617325969095,0.80405062,58732.0,58731.0,7.79090239]
[1617325969292,0.80405062,58732.0,58731.0,7.89090239]
[1617325969491,0.80405062,58732.0,58731.0,8.10090239]
[1617325969692,0.80405062,58732.0,58731.0,8.58090239]
[1617325970712,0.80405062,58732.0,58731.0,8.48090239]
[1617325971111,0.80405062,58732.0,58731.0,8.00090239]
[1617325971513,0.79905062,58732.0,58731.0,8.00090239]
[1617325971918,0.79405062,58732.0,58731.0,7.93898239]
[1617325972114,0.79405062,58732.0,58731.0,7.88525239]
[1617325972313,0.79405062,58732.0,58731.0,7.72872239]
[1617325972514,0.79405062,58732.0,58731.0,7.30272239]
[1617325972731,0.79405062,58732.0,58731.0,7.52642239]
[1617325973133,0.79405062,58732.0,58731.0,7.84216239]
[1617325973733,0.79405062,58732.0,58731.0,8.08216239]
[1617325973936,0.79405062,58732.0,58731.0,7.98216239]
[1617325974934,0.79405062,58732.0,58731.0,8.08216239]
[1617325975565,0.79405062,58732.0,58731.0,9.55232364]
[1617325975966,0.79405062,58732.0,58731.0,8.60766239]
[1617325978241,0.78615929,58732.0,58731.0,8.84766239]
[1617325978442,0.78615929,58732.0,58731.0,8.79766239]
[1617325979042,0.78615929,58732.0,58731.0,8.84766239]
[1617325979244,0.78615929,58732.0,58731.0,9.02289537]
[1617325979849,0.00060929,58733.0,58732.0,0.85]
[1617325980049,0.001,58737.0,58733.0,1.95]
[1617325980253,0.001,58737.0,58733.0,3.66477825]
[1617325980447,0.001,58737.0,58733.0,6.3481407]
[1617325980668,0.001,58737.0,58734.0,3.3220699]
[1617325980868,0.001,58737.0,58736.0,3.95633764]
[1617325981068,0.001,58737.0,58736.0,6.97366625]
[1617325981270,0.041,58739.0,58737.0,2.40190865]
[1617325981468,0.041,58739.0,58737.0,5.07147164]
[1617325981670,0.001,58741.0,58739.0,2.37150782]
[1617325981868,0.001,58741.0,58740.0,1.94]
[1617325982068,0.001,58741.0,58740.0,3.25912772]
[1617325982271,0.0012,58753.0,58740.0,3.73725023]
[1617325982468,0.0012,58753.0,58741.0,3.02057657]
[1617325982669,0.0012,58753.0,58742.0,2.76106482]
[1617325982869,0.0012,58753.0,58742.0,3.63259224]
[1617325983068,0.0012,58753.0,58742.0,4.78737433]
[1617325983494,0.0012,58753.0,58742.0,5.78737433]
[1617325983894,0.0012,58753.0,58742.0,5.47959224]
[1617325984094,0.0012,58753.0,58742.0,5.78736943]
[1617325984898,0.0008,58745.0,58742.0,5.78736943]
[1617325985097,0.020631,58750.0,58744.0,1.389557]
[1617325985301,0.020631,58750.0,58749.0,2.06810311]
[1617325985497,0.020631,58750.0,58749.0,3.81941721]
[1617325985696,0.020631,58750.0,58749.0,3.42790939]
[1617325986114,0.020631,58750.0,58749.0,5.00634127]
[1617325986315,0.020631,58750.0,58749.0,6.70864939]
[1617325986514,0.020631,58750.0,58749.0,7.44845696]
[1617325986720,0.020631,58750.0,58749.0,6.53694914]
[1617325986915,0.020631,58750.0,58749.0,6.18994914]
[1617325987118,0.020631,58750.0,58749.0,6.58145696]
[1617325987315,0.020631,58750.0,58749.0,6.18994914]
[1617325987519,0.020631,58750.0,58749.0,6.12550914]
[1617325987716,0.020631,58750.0,58749.0,5.79550914]
[1617325987916,0.020631,58750.0,58749.0,6.14250914]
[1617325988116,0.020631,58750.0,58749.0,5.75550914]
[1617325988566,0.020631,58750.0,58749.0,5.79550914]
[1617325988964,0.020631,58750.0,58749.0,5.9349132]
[1617325989163,0.020631,58750.0,58749.0,6.22420939]
[1617325989364,0.020631,58750.0,58749.0,6.18420939]
[1617325989566,0.020631,58750.0,58749.0,3.60720939]
[1617325989767,0.020631,58750.0,58749.0,2.74900074]
[1617325990175,0.53474192,58750.0,58749.0,2.12089763]
[1617325990369,0.53474192,58750.0,58749.0,2.18880628]
[1617325990370,1.14474192,58750.0,58749.0,2.18880628]
[1617325990570,0.738111,58750.0,58749.0,1.29689763]
[1617325990765,0.638111,58750.0,58749.0,1.29689763]
[1617325990967,0.763111,58750.0,58749.0,0.76079427]
[1617325991574,0.926111,58750.0,58749.0,0.41479427]
[1617325991773,0.763111,58750.0,58749.0,0.41479427]
[1617325992199,0.863111,58750.0,58749.0,0.41479427]
[1617325992797,0.863111,58750.0,58749.0,0.76079427]
[1617325993192,0.483111,58750.0,58749.0,0.76079427]
[1617325994421,0.483111,58750.0,58749.0,1.01609227]
[1617325994822,0.483111,58750.0,58749.0,0.34009227]
[1617325995023,0.838111,58750.0,58749.0,0.34009227]
[1617325996828,0.938111,58750.0,58749.0,0.34009227]
[1617325997027,0.838111,58750.0,58749.0,0.34009227]
[1617325997227,0.838111,58750.0,58749.0,0.3980401]
[1617325997426,0.838111,58750.0,58749.0,0.3930401]
[1617325998032,0.838111,58750.0,58749.0,0.33509227]
[1617325998232,1.09722192,58750.0,58749.0,0.33509227]
[1617325998432,2.07722192,58750.0,58749.0,0.07979427]
[1617325998836,1.24722192,58750.0,58747.0,0.08515761]
[1617325999051,0.162,58748.0,58744.0,0.0580523]
[1617325999250,0.212,58748.0,58743.0,0.05806709]
[1617325999649,0.05,58748.0,58745.0,0.0852054]
[1617325999850,0.05,58748.0,58744.0,0.255333]
[1617326000450,0.52437,58749.0,58745.0,0.08525906]
[1617326001455,1.304,58746.0,58745.0,0.08525906]
[1617326001674,1.869,58746.0,58745.0,0.08525906]
[1617326002075,0.819,58746.0,58745.0,0.08525906]
[1617326002279,1.164,58746.0,58745.0,0.08525906]
[1617326003075,1.064,58746.0,58745.0,0.08525906]
[1617326004077,0.020631,58750.0,58745.0,0.08525906]
[1617326004322,0.24,58749.0,58745.0,0.08525906]
[1617326004721,1.408,58746.0,58745.0,0.08525906]
[1617326005321,0.298,58746.0,58745.0,0.08525906]
[1617326005720,0.14,58746.0,58745.0,0.08525906]
[1617326006323,0.58,58746.0,58745.0,0.08525906]
[1617326007838,0.14,58746.0,58745.0,0.08525906]
[1617326008836,0.020631,58750.0,58745.0,0.14324534]
[1617326009035,0.020631,58750.0,58747.0,0.006]
[1617326009237,0.020631,58750.0,58749.0,1.999557]
[1617326009676,0.020631,58750.0,58749.0,2.23126926]
[1617326010074,0.020631,58750.0,58749.0,2.67626926]
[1617326010275,0.020631,58750.0,58749.0,3.06817791]
[1617326010674,0.020631,58750.0,58749.0,3.01660326]
[1617326010875,0.020631,58750.0,58749.0,3.40851191]
[1617326011080,0.020631,58750.0,58749.0,3.79851191]
[1617326011275,0.020631,58750.0,58749.0,3.96751191]
[1617326011473,0.020631,58750.0,58749.0,3.57560326]
[1617326011875,0.020631,58750.0,58749.0,3.96751191]
[1617326012074,0.020631,58750.0,58749.0,3.60751191]
[1617326012281,0.020631,58750.0,58749.0,3.64751191]
[1617326013081,0.020631,58750.0,58749.0,3.66751191]
[1617326013284,0.020631,58750.0,58749.0,3.27560326]
[1617326013482,0.020631,58750.0,58749.0,3.66751191]
[1617326014082,0.020631,58750.0,58749.0,3.58257348]
[1617326014686,0.020631,58750.0,58749.0,3.14066483]
[1617326014902,0.020631,58750.0,58749.0,3.53257348]
[1617326015304,0.020631,58750.0,58749.0,3.14066483]
[1617326015706,0.020631,58750.0,58749.0,3.56257348]
[1617326015907,0.020631,58750.0,58749.0,3.74257348]
[1617326016709,0.020631,58750.0,58749.0,1.92257348]
[1617326016910,0.020631,58750.0,58749.0,1.52066483]
[1617326017112,0.020631,58750.0,58749.0,1.91257348]
[1617326017311,0.020631,58750.0,58749.0,1.54066483]
[1617326017531,0.020631,58750.0,58749.0,1.37166483]
[1617326017728,0.020631,58750.0,58749.0,1.31857348]
[1617326017928,0.020631,58750.0,58749.0,0.779891]
[1617326018126,0.020631,58750.0,58749.0,1.739891]
[1617326018527,0.020631,58750.0,58749.0,0.92749211]
[1617326018931,0.020631,58750.0,58749.0,0.949891]
[1617326019929,0.55486068,58750.0,58749.0,2.25501493]
[1617326020160,0.55486068,58750.0,58749.0,2.69801253]
[1617326020359,0.55486068,58750.0,58749.0,1.9817533]
[1617326020561,0.55486068,58750.0,58749.0,2.37366195]
[1617326020758,0.53486068,58750.0,58749.0,2.88366195]
[1617326021156,0.53486068,58750.0,58749.0,2.4917533]
[1617326021560,0.53486068,58750.0,58749.0,1.9817533]
[1617326022465,0.53486068,58750.0,58749.0,1.9417533]
[1617326022689,0.53486068,58750.0,58749.0,1.9817533]
[1617326022890,0.53486068,58750.0,58749.0,2.37366195]
[1617326023090,0.53486068,58750.0,58749.0,3.14366195]
[1617326023690,0.52986068,58750.0,58749.0,3.14366195]